[Event "Early-Titled-Tuesday-Blitz-August-29-2023"]
[Site "Chess.com"]
[Date "2023.08.29"]
[Round "7"]
[White "Galileo22"]
[Black "Actuary44"]
[Result "1-0"]
[WhiteElo "2700"]
[BlackElo "2508"]
[TimeControl "180+1"]
[EndTime "9:17:37 PDT"]
[Termination "Galileo22 won by resignation"]

1. b3 {[%clk 0:03:00.9]} 1... e5 {[%clk 0:02:59.5]} 2. Bb2 {[%clk 0:03:01.5]}
2... Nc6 {[%clk 0:02:59.6]} 3. e3 {[%clk 0:03:02.1]} 3... d6 {[%clk 0:02:57.2]}
4. c4 {[%clk 0:02:53.5]} 4... g6 {[%clk 0:02:57.3]} 5. Nf3 {[%clk 0:02:47.1]}
5... Bg7 {[%clk 0:02:57.5]} 6. d4 {[%clk 0:02:38]} 6... e4 {[%clk 0:02:56.5]} 7.
Nfd2 {[%clk 0:02:37.3]} 7... f5 {[%clk 0:02:56.7]} 8. Nc3 {[%clk 0:02:33.8]}
8... Nge7 {[%clk 0:02:48.7]} 9. f3 {[%clk 0:02:24.4]} 9... exf3 {[%clk
0:02:44.2]} 10. Nxf3 {[%clk 0:02:25.3]} 10... O-O {[%clk 0:02:42.2]} 11. Bd3
{[%clk 0:02:25.4]} 11... f4 {[%clk 0:02:39.5]} 12. exf4 {[%clk 0:02:21.4]} 12...
Nxd4 {[%clk 0:02:35.7]} 13. Nxd4 {[%clk 0:02:06.6]} 13... Bxd4 {[%clk
0:02:36.6]} 14. Qd2 {[%clk 0:02:02.6]} 14... Nc6 {[%clk 0:01:18]} 15. O-O-O
{[%clk 0:01:49.7]} 15... Qf6 {[%clk 0:01:14]} 16. g3 {[%clk 0:01:36.4]} 16...
Bg4 {[%clk 0:01:07.1]} 17. Rde1 {[%clk 0:01:34.3]} 17... Bf3 {[%clk 0:01:07]}
18. Rhf1 {[%clk 0:01:32.2]} 18... Bg2 {[%clk 0:01:05.6]} 19. Qxg2 {[%clk
0:00:51.6]} 19... Bxc3 {[%clk 0:01:05.3]} 20. Be4 {[%clk 0:00:48.1]} 20... Rae8
{[%clk 0:00:23.7]} 21. Bd5+ {[%clk 0:00:38.4]} 21... Kg7 {[%clk 0:00:21.6]} 22.
Kb1 {[%clk 0:00:25.5]} 22... Bxb2 {[%clk 0:00:11.3]} 23. Qxb2 {[%clk 0:00:26.4]}
23... Qxb2+ {[%clk 0:00:10.6]} 24. Kxb2 {[%clk 0:00:27.3]} 24... Nb4 {[%clk
0:00:09.4]} 25. Rxe8 {[%clk 0:00:15.5]} 25... Rxe8 {[%clk 0:00:10.3]} 26. Bxb7
{[%clk 0:00:09]} 26... Re2+ {[%clk 0:00:10.3]} 27. Kc3 {[%clk 0:00:08]} 27...
Nxa2+ {[%clk 0:00:09.6]} 28. Kd3 {[%clk 0:00:07.8]} 28... Rxh2 {[%clk
0:00:09.7]} 29. Bf3 {[%clk 0:00:05.2]} 29... Nb4+ {[%clk 0:00:08.3]} 30. Kd4
{[%clk 0:00:03.9]} 30... Nc2+ {[%clk 0:00:07.8]} 31. Kc3 {[%clk 0:00:03.9]}
31... Ne3 {[%clk 0:00:07.6]} 32. Ra1 {[%clk 0:00:03.5]} 32... Rf2 {[%clk
0:00:06.2]} 33. Be4 {[%clk 0:00:03.8]} 33... Re2 {[%clk 0:00:03.5]} 34. Kd3
{[%clk 0:00:03.9]} 34... Nc2 {[%clk 0:00:01.9]} 35. Rxa7 {[%clk 0:00:03.6]}
35... Re3+ {[%clk 0:00:01.8]} 36. Kxc2 {[%clk 0:00:04.2]} 36... Rxe4 {[%clk
0:00:02.3]} 37. Rxc7+ {[%clk 0:00:04.9]} 37... Kh6 {[%clk 0:00:02.9]} 38. Kd3
{[%clk 0:00:05.5]} 38... Re1 {[%clk 0:00:02.8]} 39. Rc6 {[%clk 0:00:05.3]} 39...
Rg1 {[%clk 0:00:03.4]} 40. Rxd6 {[%clk 0:00:04.9]} 40... Rxg3+ {[%clk 0:00:04]}
41. Kc2 {[%clk 0:00:05.5]} 41... Kh5 {[%clk 0:00:04.5]} 42. b4 {[%clk
0:00:05.5]} 42... Kg4 {[%clk 0:00:04.6]} 43. b5 {[%clk 0:00:06.2]} 43... Rg2+
{[%clk 0:00:04.7]} 44. Kc3 {[%clk 0:00:06.3]} 44... Rg1 {[%clk 0:00:04.7]} 45.
Rd2 {[%clk 0:00:05.7]} 45... Rc1+ {[%clk 0:00:01.6]} 46. Rc2 {[%clk 0:00:05.7]}
46... Re1 {[%clk 0:00:01.9]} 47. b6 {[%clk 0:00:05.8]} 47... Re8 {[%clk
0:00:02.8]} 48. b7 {[%clk 0:00:05.5]} 48... Rb8 {[%clk 0:00:03]} 49. Rb2 {[%clk
0:00:06.1]} 49... Kxf4 {[%clk 0:00:03.6]} 50. c5 {[%clk 0:00:05.6]} 50... Ke5
{[%clk 0:00:04.2]} 51. Kc4 {[%clk 0:00:06.2]} 51... Ke6 {[%clk 0:00:04.4]} 52.
c6 {[%clk 0:00:05.5]} 52... Kd6 {[%clk 0:00:04.7]} 53. Kb5 {[%clk 0:00:05.7]}
53... Kc7 {[%clk 0:00:04.4]} 54. Rd2 {[%clk 0:00:04.7]} 54... Rxb7+ {[%clk
0:00:01.8]} 55. cxb7 {[%clk 0:00:05.6]} 55... Kxb7 {[%clk 0:00:02.4]} 56. Rd7+
{[%clk 0:00:05.9]} 56... Kb8 {[%clk 0:00:02.6]} 57. Rxh7 {[%clk 0:00:06.8]} 1-0

[Event "Early-Titled-Tuesday-Blitz-August-29-2023"]
[Site "Chess.com"]
[Date "2023.08.29"]
[Round "7"]
[White "ljuks68"]
[Black "Iunusovnuriddin"]
[Result "1-0"]
[WhiteElo "2447"]
[BlackElo "2295"]
[TimeControl "180+1"]
[EndTime "9:17:38 PDT"]
[Termination "ljuks68 won by resignation"]

1. e4 {[%clk 0:01:18.8]} 1... e5 {[%clk 0:02:58.9]} 2. Nf3 {[%clk 0:01:17.4]}
2... Nc6 {[%clk 0:02:58.6]} 3. Bb5 {[%clk 0:01:17.4]} 3... a6 {[%clk 0:02:58.4]}
4. Ba4 {[%clk 0:01:17.6]} 4... Nf6 {[%clk 0:02:58.9]} 5. Qe2 {[%clk 0:01:17.3]}
5... b5 {[%clk 0:02:56.1]} 6. Bb3 {[%clk 0:01:17.5]} 6... Be7 {[%clk 0:02:56.4]}
7. c3 {[%clk 0:01:17.6]} 7... O-O {[%clk 0:02:56.8]} 8. d4 {[%clk 0:01:17.8]}
8... d6 {[%clk 0:02:56]} 9. O-O {[%clk 0:01:17.3]} 9... Bg4 {[%clk 0:02:41.7]}
10. Rd1 {[%clk 0:01:16.9]} 10... exd4 {[%clk 0:02:41.5]} 11. cxd4 {[%clk
0:01:17]} 11... d5 {[%clk 0:02:42]} 12. e5 {[%clk 0:01:16.8]} 12... Ne4 {[%clk
0:02:42.5]} 13. h3 {[%clk 0:01:17.3]} 13... Bh5 {[%clk 0:02:41.2]} 14. Nc3
{[%clk 0:01:17.7]} 14... Nxc3 {[%clk 0:02:36.4]} 15. bxc3 {[%clk 0:01:18.6]}
15... Qd7 {[%clk 0:02:35.9]} 16. Bc2 {[%clk 0:01:13.6]} 16... Bg6 {[%clk
0:02:33]} 17. Bxg6 {[%clk 0:01:12.2]} 17... hxg6 {[%clk 0:02:33.8]} 18. Bg5
{[%clk 0:01:10.8]} 18... Na5 {[%clk 0:02:29.9]} 19. Bxe7 {[%clk 0:01:02]} 19...
Qxe7 {[%clk 0:02:30.8]} 20. Qe3 {[%clk 0:01:02.4]} 20... Nc4 {[%clk 0:02:30.1]}
21. Qf4 {[%clk 0:01:02.6]} 21... Qe6 {[%clk 0:02:17.7]} 22. Ng5 {[%clk
0:00:58.9]} 22... Qf5 {[%clk 0:02:17.6]} 23. Qh4 {[%clk 0:00:59]} 23... Rfe8
{[%clk 0:02:04.5]} 24. g4 {[%clk 0:00:48.7]} 24... Qf4 {[%clk 0:01:34.6]} 25.
Rd3 {[%clk 0:00:48.2]} 25... Nd2 {[%clk 0:01:34.3]} 26. Re1 {[%clk 0:00:21.3]}
26... Ne4 {[%clk 0:01:27.6]} 27. Qh7+ {[%clk 0:00:21]} 27... Kf8 {[%clk
0:01:27.7]} 28. Nxe4 {[%clk 0:00:21.1]} 28... dxe4 {[%clk 0:01:26.9]} 29. Rde3
{[%clk 0:00:21.1]} 29... Qh6 {[%clk 0:00:50.2]} 30. Qxh6 {[%clk 0:00:17.7]}
30... gxh6 {[%clk 0:00:51]} 31. Rxe4 {[%clk 0:00:18.4]} 31... c6 {[%clk
0:00:51.9]} 32. f4 {[%clk 0:00:18.4]} 32... Ke7 {[%clk 0:00:49.7]} 33. f5 {[%clk
0:00:18.3]} 33... gxf5 {[%clk 0:00:50.3]} 34. gxf5 {[%clk 0:00:18.5]} 34... Rg8+
{[%clk 0:00:51.2]} 35. Kf2 {[%clk 0:00:18.5]} 35... Rg5 {[%clk 0:00:52]} 36. f6+
{[%clk 0:00:17.8]} 36... Ke6 {[%clk 0:00:52.2]} 37. Rg4 {[%clk 0:00:18.2]} 37...
Rag8 {[%clk 0:00:46.6]} 38. Rxg5 {[%clk 0:00:15.5]} 38... Rxg5 {[%clk
0:00:47.5]} 39. Rg1 {[%clk 0:00:15.8]} 39... Rh5 {[%clk 0:00:46.5]} 40. Rg3
{[%clk 0:00:14.6]} 40... Rf5+ {[%clk 0:00:45.2]} 41. Ke2 {[%clk 0:00:13.7]}
41... b4 {[%clk 0:00:17.1]} 42. cxb4 {[%clk 0:00:13.1]} 42... Kd5 {[%clk
0:00:17.6]} 43. Kd3 {[%clk 0:00:10.5]} 43... Rf4 {[%clk 0:00:17.7]} 44. Kc3
{[%clk 0:00:09.4]} 44... Rxd4 {[%clk 0:00:15.8]} 45. e6 {[%clk 0:00:08.9]} 45...
fxe6 {[%clk 0:00:11.9]} 46. Rf3 {[%clk 0:00:09.1]} 46... Ke4 {[%clk 0:00:05.3]}
47. Rf4+ {[%clk 0:00:07.1]} 47... Kxf4 {[%clk 0:00:01.7]} 48. Kxd4 {[%clk
0:00:07.7]} 48... e5+ {[%clk 0:00:02.1]} 49. Kc3 {[%clk 0:00:08.3]} 49... e4
{[%clk 0:00:02.3]} 50. f7 {[%clk 0:00:08.5]} 1-0

[Event "Early-Titled-Tuesday-Blitz-August-29-2023"]
[Site "Chess.com"]
[Date "2023.08.29"]
[Round "7"]
[White "GMKrikor"]
[Black "dropstoneDP"]
[Result "0-1"]
[WhiteElo "2862"]
[BlackElo "2981"]
[TimeControl "180+1"]
[EndTime "9:17:39 PDT"]
[Termination "dropstoneDP won on time"]

1. Nf3 {[%clk 0:03:00.9]} 1... d5 {[%clk 0:02:58.2]} 2. c4 {[%clk 0:03:01.2]}
2... e6 {[%clk 0:02:58.3]} 3. d4 {[%clk 0:03:00.8]} 3... Nf6 {[%clk 0:02:58.6]}
4. cxd5 {[%clk 0:03:01.3]} 4... exd5 {[%clk 0:02:59.5]} 5. Nc3 {[%clk
0:03:01.8]} 5... c6 {[%clk 0:02:59.8]} 6. Bf4 {[%clk 0:03:00.1]} 6... Bd6 {[%clk
0:02:59.6]} 7. Bxd6 {[%clk 0:03:00.3]} 7... Qxd6 {[%clk 0:03:00.5]} 8. e3 {[%clk
0:03:00.7]} 8... Bf5 {[%clk 0:03:01.1]} 9. Nh4 {[%clk 0:02:58.1]} 9... Be6
{[%clk 0:03:01]} 10. Bd3 {[%clk 0:02:57.4]} 10... O-O {[%clk 0:02:59.4]} 11. O-O
{[%clk 0:02:54.7]} 11... Nbd7 {[%clk 0:02:59.6]} 12. h3 {[%clk 0:02:54.9]} 12...
a5 {[%clk 0:02:58.7]} 13. Qc2 {[%clk 0:02:54.4]} 13... g6 {[%clk 0:02:58.5]} 14.
f4 {[%clk 0:02:38.5]} 14... Qe7 {[%clk 0:02:40.3]} 15. f5 {[%clk 0:02:27.6]}
15... Bxf5 {[%clk 0:02:40.4]} 16. Bxf5 {[%clk 0:01:47.1]} 16... Qxe3+ {[%clk
0:02:39.1]} 17. Rf2 {[%clk 0:01:39.9]} 17... gxf5 {[%clk 0:02:37.5]} 18. Nxf5
{[%clk 0:01:40.8]} 18... Qg5 {[%clk 0:02:31.8]} 19. Raf1 {[%clk 0:01:06.2]}
19... Kh8 {[%clk 0:02:29.1]} 20. Nd6 {[%clk 0:00:56.8]} 20... Qg6 {[%clk
0:02:21.8]} 21. Qxg6 {[%clk 0:00:46.6]} 21... fxg6 {[%clk 0:02:20.8]} 22. Nxb7
{[%clk 0:00:47.3]} 22... a4 {[%clk 0:02:17]} 23. a3 {[%clk 0:00:45.7]} 23...
Rfb8 {[%clk 0:02:09.9]} 24. Nc5 {[%clk 0:00:37.6]} 24... Nxc5 {[%clk 0:02:09.1]}
25. Rxf6 {[%clk 0:00:37.9]} 25... Ne4 {[%clk 0:02:04.7]} 26. Rxc6 {[%clk
0:00:33.4]} 26... Nxc3 {[%clk 0:01:48.8]} 27. bxc3 {[%clk 0:00:34.3]} 27... Rb3
{[%clk 0:01:48.8]} 28. Ra1 {[%clk 0:00:30.5]} 28... Kg7 {[%clk 0:01:42.4]} 29.
Rc5 {[%clk 0:00:30.3]} 29... h5 {[%clk 0:01:42.7]} 30. Rxd5 {[%clk 0:00:30.3]}
30... Rxc3 {[%clk 0:01:43]} 31. Rd7+ {[%clk 0:00:23.5]} 31... Kh6 {[%clk
0:01:41.9]} 32. Rd6 {[%clk 0:00:24.2]} 32... h4 {[%clk 0:01:32.7]} 33. Rf1
{[%clk 0:00:18.9]} 33... Rxa3 {[%clk 0:01:32.4]} 34. Rff6 {[%clk 0:00:19.7]}
34... Rg3 {[%clk 0:01:31.6]} 35. Ra6 {[%clk 0:00:17]} 35... Rxa6 {[%clk
0:01:31.1]} 36. Rxa6 {[%clk 0:00:17.9]} 36... a3 {[%clk 0:01:32]} 37. d5 {[%clk
0:00:17.1]} 37... Kg5 {[%clk 0:01:28.9]} 38. Kf2 {[%clk 0:00:13.4]} 38... Rb3
{[%clk 0:01:26.4]} 39. Ke2 {[%clk 0:00:11.1]} 39... Rb2+ {[%clk 0:01:26.5]} 40.
Kf3 {[%clk 0:00:11.5]} 40... a2 {[%clk 0:01:26.6]} 41. d6 {[%clk 0:00:08.8]}
41... Kf6 {[%clk 0:01:26.7]} 42. d7+ {[%clk 0:00:09.4]} 42... Ke7 {[%clk
0:01:26.7]} 43. Ra7 {[%clk 0:00:10.3]} 43... g5 {[%clk 0:01:24.3]} 44. g3 {[%clk
0:00:04.7]} 44... Rb3+ {[%clk 0:01:23.5]} 45. Kf2 {[%clk 0:00:05.2]} 45... Rxg3
{[%clk 0:01:22.3]} 46. Rxa2 {[%clk 0:00:04.4]} 46... Rxh3 {[%clk 0:01:22.8]} 47.
Ra5 {[%clk 0:00:04.3]} 47... g4 {[%clk 0:01:15]} 48. Rd5 {[%clk 0:00:03.8]}
48... Rf3+ {[%clk 0:01:12.3]} 49. Kg2 {[%clk 0:00:02]} 49... Kd8 {[%clk
0:01:12.6]} 50. Rd4 {[%clk 0:00:01.8]} 50... h3+ {[%clk 0:01:13]} 51. Kh2 {[%clk
0:00:02.5]} 51... Rf2+ {[%clk 0:01:13.3]} 52. Kg1 {[%clk 0:00:03.1]} 52... Rg2+
{[%clk 0:01:13.8]} 53. Kh1 {[%clk 0:00:03.7]} 53... g3 {[%clk 0:01:10.8]} 54.
Rh4 {[%clk 0:00:04]} 54... Rh2+ {[%clk 0:01:11.3]} 55. Kg1 {[%clk 0:00:04.6]}
55... Kxd7 {[%clk 0:01:11.9]} 56. Rh6 {[%clk 0:00:05]} 56... Ke7 {[%clk
0:01:11.1]} 57. Rh8 {[%clk 0:00:03]} 57... Kf6 {[%clk 0:01:10.4]} 58. Rh7 {[%clk
0:00:03.5]} 58... Kg5 {[%clk 0:01:10]} 59. Rh8 {[%clk 0:00:04.1]} 59... Rg2+
{[%clk 0:01:03.4]} 60. Kh1 {[%clk 0:00:04.2]} 60... Rh2+ {[%clk 0:01:01.8]} 61.
Kg1 {[%clk 0:00:04.2]} 61... Kf5 {[%clk 0:01:02.4]} 62. Rf8+ {[%clk 0:00:04.4]}
62... Ke5 {[%clk 0:01:01.9]} 63. Rh8 {[%clk 0:00:04.5]} 63... Kf6 {[%clk
0:01:01.8]} 64. Rh7 {[%clk 0:00:04.8]} 64... Ke5 {[%clk 0:00:52.2]} 65. Rh8
{[%clk 0:00:05.3]} 65... Kd4 {[%clk 0:00:45.8]} 66. Rh7 {[%clk 0:00:04.8]} 66...
Ke3 {[%clk 0:00:46]} 67. Re7+ {[%clk 0:00:05]} 67... Kd2 {[%clk 0:00:45.8]} 68.
Rd7+ {[%clk 0:00:04.7]} 68... Ke1 {[%clk 0:00:46.1]} 69. Rh7 {[%clk 0:00:04.7]}
69... Rg2+ {[%clk 0:00:42.8]} 70. Kh1 {[%clk 0:00:04.8]} 70... Kf1 {[%clk
0:00:43.4]} 71. Rf7+ {[%clk 0:00:02.7]} 71... Rf2 {[%clk 0:00:43.8]} 0-1

[Event "Early-Titled-Tuesday-Blitz-August-29-2023"]
[Site "Chess.com"]
[Date "2023.08.29"]
[Round "7"]
[White "FairChess_on_YouTube"]
[Black "wqws"]
[Result "1-0"]
[WhiteElo "3050"]
[BlackElo "2673"]
[TimeControl "180+1"]
[EndTime "9:17:41 PDT"]
[Termination "FairChess_on_YouTube won on time"]

1. d4 {[%clk 0:03:00.9]} 1... Nf6 {[%clk 0:02:59.8]} 2. c4 {[%clk 0:03:00.7]}
2... e6 {[%clk 0:03:00.1]} 3. Nf3 {[%clk 0:03:00.3]} 3... d5 {[%clk 0:02:59.8]}
4. Bg5 {[%clk 0:03:00.7]} 4... Be7 {[%clk 0:02:56.2]} 5. e3 {[%clk 0:03:00.5]}
5... O-O {[%clk 0:02:56.7]} 6. Nc3 {[%clk 0:03:00.4]} 6... b6 {[%clk 0:02:57.1]}
7. Rc1 {[%clk 0:02:59]} 7... Bb7 {[%clk 0:02:57.6]} 8. Bd3 {[%clk 0:02:53.6]}
8... Nbd7 {[%clk 0:02:57.8]} 9. cxd5 {[%clk 0:02:49.3]} 9... exd5 {[%clk
0:02:57.1]} 10. O-O {[%clk 0:02:48.6]} 10... c5 {[%clk 0:02:52.2]} 11. Bf5
{[%clk 0:02:39.8]} 11... Re8 {[%clk 0:02:25.6]} 12. Qc2 {[%clk 0:02:12.1]} 12...
Nf8 {[%clk 0:02:23.4]} 13. dxc5 {[%clk 0:02:10.1]} 13... bxc5 {[%clk 0:02:23.3]}
14. Rfd1 {[%clk 0:02:10.7]} 14... g6 {[%clk 0:01:59.6]} 15. Bh3 {[%clk
0:02:04.4]} 15... d4 {[%clk 0:01:22.7]} 16. Ne2 {[%clk 0:01:16.6]} 16... Bxf3
{[%clk 0:01:04]} 17. gxf3 {[%clk 0:01:17.5]} 17... Nh5 {[%clk 0:01:00]} 18. Bxe7
{[%clk 0:01:03.9]} 18... Qxe7 {[%clk 0:01:00.4]} 19. Qxc5 {[%clk 0:01:03.1]}
19... dxe3 {[%clk 0:00:42.1]} 20. Qxe7 {[%clk 0:00:59.3]} 20... Rxe7 {[%clk
0:00:43]} 21. Rc4 {[%clk 0:00:46.8]} 21... Rae8 {[%clk 0:00:40.5]} 22. Bf1
{[%clk 0:00:44.4]} 22... exf2+ {[%clk 0:00:37.6]} 23. Kxf2 {[%clk 0:00:45.3]}
23... Ne6 {[%clk 0:00:32.9]} 24. b4 {[%clk 0:00:44.7]} 24... Neg7 {[%clk
0:00:27.8]} 25. Ng3 {[%clk 0:00:40.8]} 25... Nxg3 {[%clk 0:00:23.8]} 26. hxg3
{[%clk 0:00:41.7]} 26... Nf5 {[%clk 0:00:24.4]} 27. Rdc1 {[%clk 0:00:26.6]}
27... Ne3 {[%clk 0:00:23.7]} 28. Rc7 {[%clk 0:00:24.6]} 28... Nd1+ {[%clk
0:00:18.8]} 29. Kg1 {[%clk 0:00:23.3]} 29... Rxc7 {[%clk 0:00:16.4]} 30. Rxc7
{[%clk 0:00:23.4]} 30... Re1 {[%clk 0:00:16.5]} 31. Rc1 {[%clk 0:00:22.2]} 31...
g5 {[%clk 0:00:09.3]} 32. a4 {[%clk 0:00:21]} 32... h5 {[%clk 0:00:09.4]} 33. b5
{[%clk 0:00:20.1]} 33... h4 {[%clk 0:00:09.6]} 34. gxh4 {[%clk 0:00:19.3]} 34...
gxh4 {[%clk 0:00:09.7]} 35. a5 {[%clk 0:00:19.9]} 35... h3 {[%clk 0:00:09.2]}
36. b6 {[%clk 0:00:19.2]} 36... axb6 {[%clk 0:00:07.4]} 37. axb6 {[%clk
0:00:20.1]} 37... h2+ {[%clk 0:00:06.7]} 38. Kxh2 {[%clk 0:00:20.5]} 38... Rxf1
{[%clk 0:00:07.1]} 39. b7 {[%clk 0:00:20.3]} 39... Rf2+ {[%clk 0:00:05.7]} 40.
Kg3 {[%clk 0:00:20.9]} 40... Rb2 {[%clk 0:00:06.2]} 41. Rc8+ {[%clk 0:00:21.5]}
41... Kg7 {[%clk 0:00:06.5]} 42. b8=Q {[%clk 0:00:22.4]} 42... Rxb8 {[%clk
0:00:06.9]} 43. Rxb8 {[%clk 0:00:23.3]} 43... Ne3 {[%clk 0:00:06.9]} 44. Rb3
{[%clk 0:00:23.2]} 44... Nd5 {[%clk 0:00:06]} 45. Rb5 {[%clk 0:00:22.5]} 45...
Ne7 {[%clk 0:00:05.6]} 46. Kf4 {[%clk 0:00:22.2]} 46... Ng6+ {[%clk 0:00:05.8]}
47. Ke4 {[%clk 0:00:22]} 47... Kf6 {[%clk 0:00:05.7]} 48. f4 {[%clk 0:00:21.1]}
48... Ne7 {[%clk 0:00:05.8]} 49. Rb6+ {[%clk 0:00:21.7]} 49... Kg7 {[%clk
0:00:05.8]} 50. Ra6 {[%clk 0:00:17.2]} 50... Ng8 {[%clk 0:00:05.8]} 51. Kf5
{[%clk 0:00:15.8]} 51... Nh6+ {[%clk 0:00:06]} 52. Kg5 {[%clk 0:00:15.9]} 52...
Ng8 {[%clk 0:00:06.4]} 53. f5 {[%clk 0:00:16.2]} 53... f6+ {[%clk 0:00:05.5]}
54. Kh5 {[%clk 0:00:16.6]} 54... Kf7 {[%clk 0:00:01.8]} 55. Ra7+ {[%clk
0:00:16.9]} 1-0

[Event "Early-Titled-Tuesday-Blitz-August-29-2023"]
[Site "Chess.com"]
[Date "2023.08.29"]
[Round "7"]
[White "19912131712118"]
[Black "enriquebutti"]
[Result "0-1"]
[WhiteElo "2421"]
[BlackElo "2264"]
[TimeControl "180+1"]
[EndTime "9:17:47 PDT"]
[Termination "enriquebutti won by resignation"]

1. e4 {[%clk 0:03:00.9]} 1... c5 {[%clk 0:02:59.4]} 2. Nf3 {[%clk 0:02:59.8]}
2... d6 {[%clk 0:02:59.2]} 3. d4 {[%clk 0:02:54.5]} 3... cxd4 {[%clk 0:02:58.8]}
4. Nxd4 {[%clk 0:02:48.2]} 4... Nf6 {[%clk 0:02:58.3]} 5. Nc3 {[%clk 0:02:48.7]}
5... a6 {[%clk 0:02:57.7]} 6. Bg5 {[%clk 0:02:48.7]} 6... Nbd7 {[%clk 0:02:57]}
7. f4 {[%clk 0:02:49.1]} 7... Qa5 {[%clk 0:02:54.9]} 8. Qf3 {[%clk 0:02:48.2]}
8... e5 {[%clk 0:02:48.7]} 9. Nb3 {[%clk 0:02:40.2]} 9... Qc7 {[%clk 0:02:43.3]}
10. O-O-O {[%clk 0:02:37.2]} 10... Be7 {[%clk 0:02:37.8]} 11. h3 {[%clk
0:02:29.6]} 11... b5 {[%clk 0:02:29.9]} 12. a3 {[%clk 0:02:25.1]} 12... Bb7
{[%clk 0:02:29.2]} 13. g4 {[%clk 0:02:23.9]} 13... h6 {[%clk 0:02:15.9]} 14.
Bxf6 {[%clk 0:02:15]} 14... Nxf6 {[%clk 0:02:14.6]} 15. g5 {[%clk 0:02:09.3]}
15... hxg5 {[%clk 0:02:13.9]} 16. fxg5 {[%clk 0:02:08.2]} 16... Nh5 {[%clk
0:02:13.1]} 17. h4 {[%clk 0:02:03.9]} 17... Nf4 {[%clk 0:02:05.4]} 18. Bd3
{[%clk 0:01:53.6]} 18... O-O-O {[%clk 0:01:55.4]} 19. Ne2 {[%clk 0:01:36.8]}
19... Nxe2+ {[%clk 0:01:47.5]} 20. Qxe2 {[%clk 0:01:34.8]} 20... Rxh4 {[%clk
0:01:46.3]} 21. Rhg1 {[%clk 0:01:30.5]} 21... Rdh8 {[%clk 0:01:39.4]} 22. Kb1
{[%clk 0:01:28.9]} 22... g6 {[%clk 0:01:36.6]} 23. Rc1 {[%clk 0:01:20.1]} 23...
Kb8 {[%clk 0:01:34.6]} 24. c4 {[%clk 0:01:18.8]} 24... bxc4 {[%clk 0:01:33.4]}
25. Rxc4 {[%clk 0:01:19.7]} 25... Qd8 {[%clk 0:01:26.7]} 26. Rb4 {[%clk
0:01:16.9]} 26... Ka7 {[%clk 0:01:23]} 27. Qf2+ {[%clk 0:00:54.5]} 27... Ka8
{[%clk 0:01:20.7]} 28. Qxf7 {[%clk 0:00:50.1]} 28... Rh1 {[%clk 0:01:15.1]} 29.
Rxh1 {[%clk 0:00:43.8]} 29... Rxh1+ {[%clk 0:01:13.6]} 30. Ka2 {[%clk
0:00:44.3]} 30... d5 {[%clk 0:01:09.4]} 31. Nc5 {[%clk 0:00:34.2]} 31... Qf8
{[%clk 0:00:51.2]} 32. Qxf8+ {[%clk 0:00:10]} 32... Bxf8 {[%clk 0:00:50.6]} 33.
Rxb7 {[%clk 0:00:10.6]} 33... Bxc5 {[%clk 0:00:50]} 34. Rg7 {[%clk 0:00:09.3]}
34... Bd4 {[%clk 0:00:42.5]} 35. Bxa6 {[%clk 0:00:06.8]} 35... Rh2 {[%clk
0:00:39.7]} 36. Rb7 {[%clk 0:00:06.7]} 36... dxe4 {[%clk 0:00:38.4]} 37. Rb5
{[%clk 0:00:05.3]} 37... e3 {[%clk 0:00:35.8]} 38. Bb7+ {[%clk 0:00:05.4]} 38...
Ka7 {[%clk 0:00:33.9]} 39. Bf3 {[%clk 0:00:06]} 39... e2 {[%clk 0:00:33.2]} 40.
Bxe2 {[%clk 0:00:05.4]} 40... Rxe2 {[%clk 0:00:32.4]} 41. Kb1 {[%clk 0:00:06]}
41... Rg2 {[%clk 0:00:28.5]} 42. Rb3 {[%clk 0:00:04.2]} 42... Rxg5 {[%clk
0:00:27.4]} 43. Kc2 {[%clk 0:00:04.6]} 43... Rg2+ {[%clk 0:00:26.6]} 44. Kd1
{[%clk 0:00:05.1]} 44... Rxb2 {[%clk 0:00:25.6]} 45. Rg3 {[%clk 0:00:04.1]}
45... Rb6 {[%clk 0:00:20.1]} 46. Kd2 {[%clk 0:00:03.6]} 46... Re6 {[%clk
0:00:18.6]} 47. Kd3 {[%clk 0:00:02.7]} 47... Bb6 {[%clk 0:00:17.9]} 48. Ke4
{[%clk 0:00:02.9]} 48... Kb7 {[%clk 0:00:17.5]} 49. Rg5 {[%clk 0:00:02.3]} 49...
Kc6 {[%clk 0:00:17]} 50. Rg2 {[%clk 0:00:03]} 50... Bd4 {[%clk 0:00:15.8]} 51.
Rg5 {[%clk 0:00:03.7]} 51... Kd6 {[%clk 0:00:15.4]} 52. Rg2 {[%clk 0:00:04.2]}
52... Rf6 {[%clk 0:00:15.2]} 53. Rg5 {[%clk 0:00:02.9]} 53... Rf4+ {[%clk
0:00:14.6]} 54. Kd3 {[%clk 0:00:03.6]} 54... Kd5 {[%clk 0:00:14.5]} 55. Rxg6
{[%clk 0:00:04.1]} 55... e4+ {[%clk 0:00:14.4]} 56. Ke2 {[%clk 0:00:05]} 56...
e3 {[%clk 0:00:13.7]} 57. Ke1 {[%clk 0:00:05.9]} 57... Ke4 {[%clk 0:00:13.3]}
58. Re6+ {[%clk 0:00:06]} 58... Kd3 {[%clk 0:00:13.1]} 59. Rd6 {[%clk
0:00:06.3]} 59... e2 {[%clk 0:00:12.4]} 60. Rxd4+ {[%clk 0:00:05.5]} 60... Rxd4
{[%clk 0:00:11.6]} 61. a4 {[%clk 0:00:06.4]} 61... Rc4 {[%clk 0:00:11.4]} 0-1